bitfinex/quotes_ETHUSD_20251122
["timestamp","ask_amount","ask_price","bid_price","bid_amount"]
[1763839484056,9.16381308,2755.5,2755.4,0.001]
[1763839484755,13.72309808,2755.5,2755.4,0.001]
[1763839484955,13.72509808,2755.5,2755.4,0.001]
[1763839485975,14.07787808,2755.5,2755.4,0.001]
[1763839486975,18.15744608,2755.5,2755.4,0.001]
[1763839487344,17.14494608,2755.5,2755.4,0.001]
[1763839487769,16.15484308,2755.5,2755.4,0.001]
[1763839488046,15.15484308,2755.5,2755.4,0.001]
[1763839488975,7.01115908,2755.5,2755.4,0.001]
[1763839489183,16.53584308,2755.5,2755.4,0.001]
[1763839490555,15.53584308,2755.5,2755.4,0.001]
[1763839491181,16.53584308,2755.5,2755.4,0.001]
[1763839491904,5.71125866,2755.5,2755.4,0.001]
[1763839492072,3.38205366,2755.5,2755.4,0.001]
[1763839492272,5.69925066,2755.5,2755.4,0.001]
[1763839492468,3.38205366,2755.5,2755.4,0.001]
[1763839493690,7.5806318,2755.5,2755.4,0.001]
[1763839494382,9.6218288,2755.5,2755.4,0.001]
[1763839495085,7.5806318,2755.5,2755.4,0.001]
[1763839495592,3.95152638,2755.5,2755.4,0.001]
[1763839495796,3.42102638,2755.5,2755.4,0.001]
[1763839495996,3.3268974,2755.5,2755.4,0.001]
[1763839497003,6.5994704,2755.5,2755.4,0.001]
[1763839497883,7.2484084,2755.5,2755.4,0.001]
[1763839498079,7.3704084,2755.5,2755.4,0.001]
[1763839498613,6.9075074,2755.5,2755.4,0.001]
[1763839498807,5.8978494,2755.5,2755.4,0.001]
[1763839499110,7.12309479,2755.5,2755.4,0.001]
[1763839499408,4.65231879,2755.5,2755.4,0.001]
[1763839501013,10.36167021,2755.5,2755.4,0.001]
[1763839501399,6.73256479,2755.5,2755.4,0.001]
[1763839502032,8.22091779,2755.5,2755.4,0.001]
[1763839502174,7.16061979,2755.5,2755.4,0.001]
[1763839502868,4.19291879,2755.5,2755.4,0.001]
[1763839503085,3.4488974,2755.5,2755.4,0.001]
[1763839504719,1.9217251,2755.5,2755.4,0.9349]
[1763839505404,2.4200251,2755.5,2755.4,0.001]
[1763839505587,2.8794251,2755.5,2755.4,0.001]
[1763839505789,3.16776761,2755.5,2755.4,0.001]
[1763839506182,2.70836761,2755.5,2755.4,0.001]
[1763839507298,2.21006761,2755.5,2755.4,0.4618]
[1763839508008,1.9217251,2755.5,2755.4,0.9517]
[1763839508394,1.77623326,2755.5,2755.4,0.9517]
[1763839512815,0.529504,2755.5,2755.4,0.9517]
[1763839515002,0.002,2755.5,2755.4,0.9517]
[1763839517840,0.002,2755.5,2755.4,0.4618]
[1763839518057,0.002,2755.5,2755.4,0.001]
[1763839518058,0.902804,2755.5,2755.4,0.001]
[1763839518550,1.386604,2755.5,2755.4,0.001]
[1763839518840,1.72647979,2755.5,2755.4,0.001]
[1763839519149,9.94760142,2755.5,2755.4,0.001]
[1763839520538,10.51705615,2755.5,2755.4,0.001]
[1763839520853,8.50455615,2755.5,2755.4,0.001]
[1763839522751,11.46401215,2755.5,2755.4,0.001]
[1763839523762,9.71030415,2755.5,2755.4,0.001]
[1763839524255,9.85579228,2755.5,2755.4,0.001]
[1763839524850,14.48517528,2755.5,2755.4,0.001]
[1763839525058,10.87753128,2755.5,2755.4,0.001]
[1763839525361,6.98881128,2755.5,2755.4,0.001]
[1763839525862,8.16019628,2755.5,2755.4,0.001]
[1763839526262,7.61952328,2755.5,2755.4,0.001]
[1763839526825,7.59032028,2755.5,2755.4,0.001]
[1763839527860,9.35475328,2755.5,2755.4,0.001]
[1763839528494,9.35485869,2755.5,2755.4,0.001]
[1763839529895,3.53611569,2755.5,2755.4,0.001]
[1763839530202,9.35485869,2755.5,2755.4,0.001]
[1763839530990,9.73585869,2755.5,2755.4,0.001]
[1763839531878,3.53611569,2755.5,2755.4,0.001]
[1763839532079,5.69785269,2755.5,2755.4,0.001]
[1763839532276,3.53611569,2755.5,2755.4,0.001]
[1763839532795,8.08446242,2755.5,2755.4,0.001]
[1763839533103,10.44256642,2755.5,2755.4,0.001]
[1763839534583,2.48286096,2755.5,2755.4,0.001]
[1763839535998,1.98756096,2755.5,2755.4,0.4806]
[1763839536182,1.08056832,2755.5,2755.4,0.4806]
[1763839536386,0.89297333,2755.5,2755.4,0.9572]
[1763839536918,0.7474852,2755.5,2755.4,0.9572]
[1763839538022,0.3419812,2755.5,2755.4,0.9572]
[1763839538194,0.002,2755.5,2755.4,0.4806]
[1763839538517,0.407504,2755.5,2755.4,0.9394]
[1763839538721,0.7474852,2755.5,2755.4,0.9394]
[1763839539225,0.407504,2755.5,2755.4,0.9394]
[1763839543228,0.815008,2755.5,2755.4,0.9394]
[1763839544639,0.409504,2755.5,2755.4,0.9394]
[1763839545138,0.002,2755.5,2755.4,4.56863713]
[1763839545509,0.002,2755.5,2755.4,0.9394]
[1763839551519,0.413504,2755.5,2755.4,0.9394]
[1763839558648,0.002,2755.5,2755.4,0.9394]
[1763839562247,0.002,2755.5,2755.4,0.4806]
[1763839562632,0.002,2755.5,2755.4,0.9394]
[1763839568889,0.002,2755.5,2755.4,0.4806]
[1763839570873,0.002,2755.5,2755.4,0.9729]
[1763839573191,0.34272232,2755.5,2755.4,0.9729]
[1763839574118,0.34272232,2755.5,2755.4,0.4806]
[1763839575479,0.34272232,2755.5,2755.4,0.9729]
[1763839580393,0.34272232,2755.5,2755.4,0.4806]
[1763839580597,0.83522232,2755.5,2755.4,0.001]
[1763839581422,1.24072632,2755.5,2755.4,0.001]
[1763839581582,1.49694975,2755.5,2755.4,0.001]
[1763839582400,1.00444975,2755.5,2755.4,0.4568]
[1763839582606,0.74822632,2755.5,2755.4,0.4568]
[1763839583680,1.24072632,2755.5,2755.4,0.001]
[1763839583890,1.73722632,2755.5,2755.4,0.001]
[1763839584231,1.88268959,2755.5,2755.4,0.001]
[1763839585008,2.00468959,2755.5,2755.4,0.001]
[1763839585249,2.20555855,2755.5,2755.4,0.001]
[1763839594620,6.39858719,2755.5,2755.4,0.001]
[1763839594816,10.02769261,2755.5,2755.4,0.001]
[1763839595363,6.39858719,2755.5,2755.4,0.001]
[1763839596824,10.02769261,2755.5,2755.4,0.001]
[1763839597234,11.22178464,2755.4,2755.3,0.001]
[1763839597536,28.49152314,2755.4,2755.3,0.001]
[1763839597843,28.63704039,2755.4,2755.3,0.001]
[1763839598353,6.07762439,2755.4,2755.3,0.001]
[1763839598553,27.18099439,2755.4,2755.3,0.001]
[1763839599520,30.61399252,2755.4,2755.3,0.001]
[1763839599725,25.26219952,2755.4,2755.3,0.001]
[1763839600259,23.66374252,2755.4,2755.3,0.001]
[1763839600425,9.70686152,2755.4,2755.3,0.001]
[1763839600625,25.10430552,2755.4,2755.3,0.001]
[1763839601388,23.33281752,2755.4,2755.3,0.001]
[1763839601671,24.98807952,2755.4,2755.3,0.001]
[1763839602624,26.86072852,2755.4,2755.3,0.001]
[1763839602842,26.14260052,2755.4,2755.3,0.001]
[1763839603059,25.46160052,2755.4,2755.3,0.001]
[1763839603371,25.15948552,2755.4,2755.3,0.001]
[1763839603757,11.15786337,2755.4,2755.3,0.001]
[1763839603958,8.56097035,2755.4,2755.3,0.001]
[1763839604159,7.30728422,2755.4,2755.3,0.001]
[1763839604373,4.92253322,2755.4,2755.3,0.001]
[1763839605682,7.25358822,2755.4,2755.3,0.001]
[1763839606853,4.92253322,2755.4,2755.3,0.001]
[1763839607081,1.12097979,2755.4,2755.3,0.4598]
[1763839607283,0.60823957,2755.4,2755.3,0.4598]
[1763839607497,1.01374357,2755.4,2755.3,0.4598]
[1763839607657,1.50864357,2755.4,2755.3,0.001]
[1763839607853,1.99034357,2755.4,2755.3,0.001]
[1763839609753,1.01374357,2755.4,2755.3,0.4598]
[1763839610009,1.52356195,2755.4,2755.3,0.4598]
[1763839610557,1.01257173,2755.4,2755.3,0.4598]
[1763839610779,1.50747173,2755.4,2755.3,0.001]
[1763839614080,1.98917173,2755.4,2755.3,0.001]
[1763839614280,1.50747173,2755.4,2755.3,0.001]
[1763839614830,1.01257173,2755.4,2755.3,0.4598]
[1763839615128,1.01257173,2755.4,2755.3,0.9265]
[1763839615680,1.01257173,2755.4,2755.3,0.4598]
[1763839616329,1.01299691,2755.4,2755.3,0.4598]
[1763839619013,0.89299691,2755.4,2755.3,0.9265]
[1763839619313,1.01499691,2755.4,2755.3,0.4598]
[1763839619684,1.99159691,2755.4,2755.3,0.001]
[1763839619884,3.55174648,2755.4,2755.3,0.001]
[1763839620119,3.07004648,2755.4,2755.3,0.001]
[1763839620320,3.55174648,2755.4,2755.3,0.001]
[1763839620494,26.23438462,2755.4,2755.3,0.001]
[1763839620688,25.8033718,2755.4,2755.3,0.001]
[1763839621513,36.4474268,2755.4,2755.3,0.001]
[1763839621729,36.0212388,2755.4,2755.3,0.001]
[1763839621941,33.9955218,2755.4,2755.3,0.001]
[1763839622229,29.1725378,2755.4,2755.3,0.001]
[1763839622585,30.2293618,2755.4,2755.3,0.001]
[1763839623584,31.6082138,2755.4,2755.3,0.001]
[1763839624389,32.17776765,2755.4,2755.3,0.001]
[1763839624604,32.96850765,2755.4,2755.3,0.001]
[1763839625033,28.06665065,2755.4,2755.3,0.001]
[1763839625191,26.33460665,2755.4,2755.3,0.001]
[1763839625394,25.18757565,2755.4,2755.3,0.001]
[1763839625610,26.71745565,2755.4,2755.3,0.001]
[1763839626734,27.39845565,2755.4,2755.3,0.001]
[1763839627033,26.71745565,2755.4,2755.3,0.001]
[1763839627535,14.91611465,2755.4,2755.3,0.001]
[1763839627720,14.42410347,2755.4,2755.3,0.001]
[1763839627926,16.37656747,2755.4,2755.3,0.001]
[1763839628231,15.77656747,2755.4,2755.3,0.001]
[1763839628812,18.12887747,2755.4,2755.3,0.001]
[1763839629848,17.62567747,2755.4,2755.3,0.001]
[1763839630069,12.65487747,2755.4,2755.3,0.001]
[1763839630226,12.46607747,2755.4,2755.3,0.001]
[1763839630549,10.25313447,2755.4,2755.3,0.001]
[1763839630746,12.74588947,2755.4,2755.3,0.001]
[1763839630950,12.34713462,2755.4,2755.3,0.001]
[1763839631850,1.54615384,2755.4,2755.3,0.4534]
[1763839632032,1.66815384,2755.4,2755.3,0.4534]
[1763839632226,4.68067048,2755.4,2755.3,0.4534]
[1763839632427,7.66436749,2755.4,2755.3,0.001]
[1763839632633,11.76570462,2755.4,2755.3,0.001]
[1763839632952,9.09109349,2755.4,2755.3,0.001]
[1763839633163,5.07774349,2755.4,2755.3,0.001]
[1763839633652,7.37426749,2755.4,2755.3,0.4534]
[1763839633857,7.57993449,2755.4,2755.3,0.4534]
[1763839634067,2.57514648,2755.4,2755.3,0.4534]
[1763839634364,1.92198955,2755.4,2755.3,0.9314]
[1763839636762,1.92225801,2755.4,2755.3,0.9314]
[1763839640874,0.60976137,2755.4,2755.3,0.9314]
[1763839641040,1.01526537,2755.4,2755.3,0.9314]
[1763839641240,0.60976137,2755.4,2755.3,0.9314]
[1763839641667,1.01526537,2755.4,2755.3,0.4534]
[1763839644801,1.00982073,2755.4,2755.3,0.4534]
[1763839646471,1.00982073,2755.4,2755.3,0.9314]
[1763839650509,0.66957661,2755.4,2755.3,0.9314]
[1763839652383,0.14207261,2755.4,2755.3,0.9314]
[1763839652579,0.002,2755.4,2755.3,0.9314]
[1763839652830,0.407504,2755.4,2755.3,0.4534]
[1763839652979,0.407504,2755.4,2755.3,0.9314]
[1763839654627,1.22850134,2755.4,2755.3,0.001]
[1763839654810,4.03685022,2755.4,2755.3,0.001]
[1763839655583,3.56475022,2755.4,2755.3,0.001]
[1763839655809,4.66818015,2755.4,2755.3,0.001]
[1763839658298,8.57173915,2755.4,2755.3,0.001]
[1763839658500,13.10796892,2755.4,2755.3,0.001]
[1763839659309,19.41633892,2755.4,2755.3,0.001]
[1763839660194,13.48020392,2755.4,2755.3,0.001]
[1763839661303,15.08020392,2755.4,2755.3,0.001]
[1763839662433,19.59671392,2755.4,2755.3,0.001]
[1763839662945,21.9329628,2755.4,2755.3,0.001]
[1763839663244,19.59671392,2755.4,2755.3,0.001]
[1763839663540,24.44275892,2755.4,2755.3,0.001]
[1763839664432,33.61019992,2755.4,2755.3,0.001]
[1763839665118,32.74317205,2755.4,2755.3,0.001]
[1763839666529,33.32383905,2755.4,2755.3,0.001]
[1763839668140,35.66008793,2755.4,2755.3,0.001]
[1763839668345,34.98944593,2755.4,2755.3,0.001]
[1763839668661,35.36477511,2755.4,2755.3,0.001]
[1763839669534,38.67692511,2755.4,2755.3,0.001]
[1763839669862,35.47123811,2755.4,2755.3,0.001]
[1763839670535,35.90055011,2755.4,2755.3,0.001]
[1763839671673,42.34055011,2755.4,2755.3,0.001]
[1763839672772,42.39055711,2755.4,2755.3,0.001]
[1763839673038,1.31249664,2755.3,2755.2,0.001]
[1763839673255,36.79725928,2755.3,2755.2,0.001]
[1763839673636,31.31249664,2755.1,2755.0,0.001]
[1763839673849,35.9849944,2755.0,2754.9,0.001]
[1763839674145,35.9849944,2755.0,2754.5,0.001]
[1763839674146,31.72764461,2754.9,2754.5,0.001]
[1763839674342,36.99485928,2754.9,2754.5,0.001]
[1763839674732,37.14041094,2754.9,2754.5,0.001]
[1763839675871,40.77030676,2754.9,2754.5,0.001]
[1763839676633,10.77030676,2754.9,2754.5,0.001]
[1763839676838,40.77030676,2754.9,2754.5,0.001]
[1763839679055,39.97487876,2754.9,2754.5,0.001]
[1763839679574,39.71315576,2754.9,2754.5,0.001]
[1763839679877,39.59413476,2754.9,2754.5,0.001]
[1763839680562,46.03413476,2754.9,2754.5,0.001]
[1763839680870,17.20952695,2754.9,2754.5,0.001]
[1763839681093,47.20952695,2754.9,2754.5,0.001]
[1763839681247,30.0,2754.6,2754.5,0.001]
[1763839681574,27.05703864,2754.4,2754.3,0.001]
[1763839681775,32.62716511,2754.4,2754.3,0.001]
[1763839681959,32.62716511,2754.4,2754.2,0.001]
[1763839681960,1.31249664,2754.3,2754.2,0.001]
[1763839682161,33.07162535,2754.3,2754.2,0.001]
[1763839682374,33.07162535,2754.3,2753.4,0.4667]
[1763839682375,1.31249664,2754.1,2753.4,0.4667]
[1763839682559,3.64874552,2753.5,2753.4,0.4667]
[1763839682881,3.77074552,2753.5,2753.4,0.4667]
[1763839683173,4.86264526,2753.5,2753.4,0.9377]
[1763839684164,4.86264526,2753.5,2753.4,0.471]
[1763839684485,0.405504,2753.2,2752.0,0.1928]
[1763839684661,2.33624888,2752.8,2752.7,0.4667]
[1763839685076,4.33534,2752.8,2752.7,0.9377]
[1763839688082,1.99909112,2752.8,2752.7,0.9377]
[1763839689698,2.12109112,2752.8,2752.7,0.9377]
[1763839690597,7.384086,2752.8,2752.7,0.9377]
[1763839690889,4.862844,2752.8,2752.7,0.9377]
[1763839691470,2.52659512,2752.8,2752.7,0.9377]
[1763839693901,2.40459512,2752.8,2752.7,0.9377]
[1763839695491,1.99909112,2752.8,2752.7,1.39477514]
[1763839695676,0.90699264,2752.8,2752.7,0.9377]
[1763839696864,0.405504,2753.1,2752.7,0.9377]
[1763839696865,0.405504,2753.1,2752.7,4.57049689]
[1763839697080,1.49740771,2753.1,2753.0,0.4551]
[1763839697262,1.09190371,2753.1,2753.0,0.4551]
[1763839697466,0.122,2753.2,2753.0,0.9222]
[1763839697796,1.09185205,2753.2,2753.1,0.6551]
[1763839697996,0.405504,2753.4,2753.1,1.59765687]
[1763839698296,1.09175669,2753.4,2753.2,0.4671]
[1763839698464,1.49726069,2753.4,2753.3,0.4551]
[1763839698983,1.49726069,2753.4,2753.3,0.9222]
[1763839699889,1.49726069,2753.4,2753.3,4.55420523]
[1763839699890,1.09175669,2753.4,2753.3,4.55420523]
[1763839700226,3.62953285,2755.2,2753.3,4.55420523]
[1763839700227,1.0914429,2754.5,2753.5,0.1]
[1763839700370,1.0914429,2754.5,2753.6,2.33624888]
[1763839700569,1.4969469,2754.5,2754.4,0.4551]
[1763839700770,1.43018167,2754.5,2753.7,0.4671]
[1763839700965,1.24573141,2754.4,2753.7,0.4671]
[1763839701192,0.405504,2754.2,2753.7,0.4671]
[1763839701409,1.31249664,2753.9,2753.1,0.2]
[1763839701578,1.31249664,2753.9,2753.6,0.4671]
[1763839701773,1.31249664,2753.9,2753.8,0.4551]
[1763839702092,1.31249664,2754.1,2753.8,0.4551]
[1763839702291,0.405504,2753.9,2753.8,0.9222]
[1763839702602,1.49722096,2753.9,2753.8,0.9222]
[1763839707107,1.49722096,2753.9,2753.8,0.4551]
[1763839707310,2.8567136,2753.9,2753.3,0.4671]
[1763839707608,2.4042136,2753.9,2753.8,0.4551]
[1763839707783,1.83634962,2753.9,2753.8,0.4551]
[1763839707984,1.83634962,2753.9,2753.8,0.9222]
[1763839708714,1.49722096,2753.9,2753.8,0.9222]
[1763839709415,0.122,2754.0,2753.8,0.9222]
[1763839709600,0.002,2754.2,2753.9,0.9222]
[1763839709780,1.09348261,2754.2,2754.1,0.6447]
[1763839709982,0.002,2754.2,2754.1,0.6447]
[1763839710306,0.002,2754.2,2754.1,1.1118]
[1763839710511,0.407504,2754.2,2754.1,1.1118]
[1763839710692,0.002,2754.2,2754.1,1.1118]
[1763839710893,0.407504,2754.2,2754.1,1.1118]
[1763839718727,0.002,2754.2,2754.1,1.1118]
[1763839720623,0.6467,2754.2,2754.1,1.1118]
[1763839721142,0.002,2754.2,2754.1,1.1118]
[1763839721359,0.002,2754.2,2754.1,1.61734158]
[1763839721642,0.002,2754.2,2754.1,5.24829179]
[1763839724710,0.002,2754.2,2754.1,1.61734158]
[1763839724910,0.002,2754.2,2754.1,4.74275021]
[1763839725945,0.002,2754.2,2754.1,7.24690136]
[1763839726098,0.002,2754.2,2754.1,7.34690136]
[1763839727627,0.002,2754.2,2754.1,7.24690136]
[1763839727826,0.002,2754.2,2754.1,7.34690136]
[1763839730214,0.002,2754.5,2754.1,14.50880178]
[1763839730418,0.002,2754.5,2754.4,3.08175115]
[1763839730733,0.002,2754.5,2754.4,3.20375115]
[1763839730927,0.002,2754.5,2754.4,7.32680589]
[1763839735043,0.002,2754.5,2754.4,7.22680589]
[1763839735374,0.002,2754.5,2754.4,4.72265474]
[1763839736346,0.002,2754.5,2754.4,4.82265474]
[1763839740063,0.002,2754.5,2754.4,7.32680589]
[1763839740852,0.002,2754.5,2754.4,7.10480589]
[1763839741052,0.002,2754.5,2754.4,4.72265474]
[1763839741263,0.002,2754.5,2754.4,4.60065474]
[1763839741464,0.002,2754.5,2754.4,4.72265474]
[1763839743354,0.002,2754.5,2754.4,4.60065474]
[1763839743554,0.002,2754.5,2754.4,4.72265474]
[1763839746997,0.4603,2754.5,2754.1,0.001]
[1763839747209,0.4873,2754.5,2754.2,0.122]
[1763839747416,0.002,2754.5,2754.2,0.122]
[1763839748400,0.4873,2754.5,2754.2,0.122]
[1763839748899,0.4583,2754.3,2754.1,7.26289889]
[1763839749100,0.4583,2754.3,2754.2,0.122]
[1763839750711,0.4873,2754.5,2754.2,0.122]
[1763839750916,0.002,2754.5,2754.2,0.7636]
[1763839751101,0.002,2754.5,2754.4,4.10965474]
[1763839751508,0.002,2754.5,2754.4,4.23165474]
[1763839754078,0.4603,2754.5,2754.4,3.75255474]
[1763839754696,0.002,2754.5,2754.4,3.75255474]
[1763839755084,0.002,2754.5,2754.4,4.23165474]
[1763839757715,0.9456,2754.5,2754.4,0.122]
[1763839757886,0.9456,2754.5,2754.3,3.63064571]
[1763839758087,0.5386,2754.4,2754.3,3.63064571]
[1763839758288,0.5386,2754.4,2754.3,3.75264571]
[1763839760322,0.002,2754.5,2754.3,7.86243227]
[1763839761024,0.002,2754.5,2754.4,0.4791]
[1763839761822,0.002,2754.5,2754.4,4.10965474]
[1763839762025,0.4603,2754.5,2754.4,3.63055474]
[1763839766043,0.002,2754.5,2754.4,4.10965474]
[1763839766658,0.002,2754.5,2754.4,4.56475474]
[1763839767034,0.002,2754.5,2754.4,4.10965474]
[1763839769325,0.002,2754.5,2754.4,4.23165474]
[1763839773474,0.4603,2754.5,2754.4,3.75255474]
[1763839773973,0.9456,2754.5,2754.4,3.75255474]
[1763839775072,0.4603,2754.5,2754.4,3.75255474]
[1763839776773,0.002,2754.5,2754.4,3.75255474]
[1763839776963,0.002,2754.5,2754.4,4.68125474]
[1763839777166,0.002,2754.5,2754.4,4.23085474]
[1763839778083,0.4897,2754.5,2754.4,3.75255474]
[1763839782304,0.002,2754.5,2754.4,4.20445474]
[1763839783916,0.002,2754.5,2754.4,7.03241658]
[1763839785490,0.002,2754.5,2754.4,9.46887842]
[1763839785692,0.002,2754.5,2754.4,7.69661658]
[1763839785998,0.002,2754.5,2754.4,4.20445474]
[1763839786573,0.4897,2754.5,2754.4,3.75255474]
[1763839787498,0.002,2754.5,2754.4,3.74607197]
[1763839787794,0.002,2754.5,2754.4,4.19797197]
[1763839788502,0.4897,2754.5,2754.3,3.63064893]
[1763839788794,0.022,2754.4,2754.3,3.63064893]
[1763839788959,0.022,2754.4,2754.3,3.75264893]
[1763839795197,0.002,2754.5,2754.3,7.83523549]
[1763839799426,0.002,2754.5,2754.4,0.9434]
[1763839799625,0.002,2754.5,2754.4,0.4519]
[1763839800126,0.002,2754.5,2754.4,3.37986184]
[1763839800501,0.002,2754.5,2754.4,0.4519]
[1763839801329,0.002,2754.5,2754.4,4.08245474]
[1763839802119,0.002,2754.5,2754.4,6.94672212]
[1763839802311,0.002,2754.5,2754.4,7.01041658]
[1763839803900,0.002,2754.5,2754.4,6.91041658]
[1763839804116,0.002,2754.5,2754.4,7.50961658]
[1763839805206,0.002,2754.5,2754.4,9.84607842]
[1763839805407,0.002,2754.5,2754.4,10.75307106]
[1763839808629,0.002,2754.5,2754.4,4.58165474]
[1763839808830,0.4582,2754.5,2754.3,0.001]
[1763839809035,0.0892,2754.4,2754.3,3.63168656]
[1763839809340,0.0892,2754.4,2754.3,3.75368656]
[1763839809503,0.5487,2754.4,2754.3,3.75368656]
[1763839815979,0.5487,2754.4,2754.3,0.001]
[1763839816134,0.5487,2754.4,2754.3,0.123]
[1763839816659,0.5487,2754.4,2754.3,3.75368656]
[1763839818746,0.5487,2754.4,2754.3,0.123]
[1763839820069,0.5487,2754.4,2754.3,3.75368656]
[1763839820269,0.5487,2754.4,2754.3,0.123]
[1763839823674,0.5487,2754.4,2754.3,0.001]
[1763839824046,0.69420983,2754.4,2754.3,0.001]
[1763839835393,1.09971383,2754.4,2754.3,0.001]
[1763839835686,5.09613145,2754.4,2754.3,0.001]
[1763839837759,11.36117045,2754.4,2754.3,0.001]
[1763839837973,11.36317045,2754.4,2754.3,0.001]
[1763839838989,9.02670861,2754.4,2754.3,0.001]
[1763839839791,13.38700061,2754.4,2754.3,0.001]
[1763839839961,16.31465335,2754.4,2754.3,0.001]
[1763839840689,20.15410435,2754.4,2754.3,0.001]
[1763839841397,17.74266535,2754.4,2754.3,0.001]
[1763839841769,17.73607535,2754.4,2754.3,0.001]
[1763839842797,17.62688735,2754.4,2754.3,0.001]
[1763839843809,36.39222435,2754.4,2754.3,0.001]
[1763839843995,36.39192305,2754.4,2754.3,0.001]
[1763839844340,25.51442905,2754.4,2754.3,0.001]
[1763839844912,36.39192305,2754.4,2754.3,0.001]
[1763839845063,29.95892405,2754.4,2754.3,0.001]
[1763839845511,26.83946305,2754.4,2754.3,0.001]
[1763839845931,30.25020105,2754.4,2754.3,0.001]
[1763839846227,25.80320105,2754.4,2754.3,0.001]
[1763839847013,30.25065305,2754.4,2754.3,0.001]
[1763839847312,25.69969905,2754.4,2754.3,0.001]
[1763839848019,6.39192305,2754.4,2754.3,0.001]
[1763839848238,25.79849205,2754.4,2754.3,0.001]
[1763839849338,28.93749205,2754.4,2754.3,0.001]
[1763839849833,25.79849205,2754.4,2754.3,0.001]
[1763839850331,6.39192305,2754.4,2754.3,0.001]
[1763839850500,29.56775205,2754.4,2754.3,0.001]
[1763839851116,22.59260105,2754.4,2754.3,0.001]
[1763839851314,6.39192305,2754.4,2754.3,0.001]
[1763839851517,25.12162405,2754.4,2754.3,0.001]
[1763839852039,24.52162405,2754.4,2754.3,0.001]
[1763839852405,28.96862405,2754.4,2754.3,0.001]
[1763839852937,28.43168405,2754.4,2754.3,0.001]
[1763839853435,6.39192305,2754.4,2754.3,0.001]
[1763839853606,23.98468405,2754.4,2754.3,0.001]
[1763839854406,31.90819705,2754.4,2754.3,0.001]
[1763839854806,27.13462405,2754.4,2754.3,0.001]
[1763839855541,28.32725805,2754.4,2754.3,0.001]
[1763839856155,25.57344805,2754.4,2754.3,0.001]
[1763839856520,30.02044805,2754.4,2754.3,0.001]
[1763839856721,25.57344805,2754.4,2754.3,0.001]
[1763839857444,30.02044805,2754.4,2754.3,0.001]
[1763839857963,23.04442505,2754.4,2754.3,0.001]
[1763839858556,26.31142805,2754.4,2754.3,0.001]
[1763839859056,26.31155839,2754.4,2754.3,0.001]
[1763839859561,30.75855839,2754.4,2754.3,0.001]
[1763839859856,23.73910339,2754.4,2754.3,0.001]
[1763839860158,19.29210339,2754.4,2754.3,0.001]
[1763839860547,30.88671639,2754.4,2754.3,0.001]
[1763839860760,26.43971639,2754.4,2754.3,0.001]
[1763839861337,2.30199865,2754.4,2754.3,0.001]
[1763839861682,1.86271834,2754.4,2754.3,0.001]
[1763839862360,2.26822234,2754.4,2754.3,0.001]
[1763839862761,1.39431834,2754.4,2754.3,0.4624]
[1763839862934,1.39431834,2754.4,2754.3,0.9525]
[1763839863479,1.79982234,2754.4,2754.3,0.9525]
[1763839863650,0.74731987,2754.4,2754.3,0.9525]
[1763839864074,0.74731987,2754.4,2754.3,0.001]
[1763839864772,0.74731987,2754.4,2754.3,0.4624]
[1763839864964,0.74731987,2754.4,2754.3,0.9525]
[1763839867783,0.74731987,2754.4,2754.3,0.4624]
[1763839868075,0.74731987,2754.4,2754.3,0.001]
[1763839868277,0.74731987,2754.4,2754.3,0.482]
[1763839868974,1.20481987,2754.4,2754.3,0.001]
[1763839869347,1.90040186,2754.4,2754.3,0.001]
[1763839870661,5.2558945,2754.4,2754.3,0.001]
[1763839871572,8.88644924,2754.4,2754.3,0.001]
[1763839872164,19.83867324,2754.4,2754.3,0.001]
[1763839872759,16.2081185,2754.4,2754.3,0.001]
[1763839873161,16.5981775,2754.4,2754.3,0.001]
[1763839873397,14.0748865,2754.4,2754.3,0.001]
[1763839873767,12.9535745,2754.4,2754.3,0.001]
[1763839874315,7.6115535,2754.4,2754.3,0.001]
[1763839874604,2.8073945,2754.4,2754.3,0.001]
[1763839874780,4.8287135,2754.4,2754.3,0.001]
[1763839875181,4.8250765,2754.4,2754.3,0.001]
[1763839875512,2.8073945,2754.4,2754.3,0.001]
[1763839875964,2.95294828,2754.4,2754.3,0.001]
[1763839876701,5.28249728,2754.4,2754.3,0.001]
[1763839877567,2.95294828,2754.4,2754.3,0.001]
[1763839878076,1.62304428,2754.4,2754.3,0.482]
[1763839878284,0.48736965,2754.4,2754.3,0.9355]
[1763839878466,0.89287365,2754.4,2754.3,0.9355]
[1763839880575,0.407504,2754.4,2754.3,0.9355]
[1763839884879,0.002,2754.4,2754.3,0.9355]
[1763839885083,0.002,2754.4,2754.3,4.56618656]
[1763839886008,0.002,2754.4,2754.3,4.66618656]
[1763839887654,0.002,2754.4,2754.3,0.9355]
[1763839888012,0.002,2754.4,2754.3,4.56618656]
[1763839891827,0.002,2754.4,2754.3,4.66618656]
[1763839892624,0.002,2754.4,2754.3,4.60249342]
[1763839892935,0.002,2754.4,2754.3,4.66618656]
[1763839896846,0.002,2754.4,2754.3,4.56618656]
[1763839897046,0.002,2754.4,2754.3,0.482]
[1763839897246,0.002,2754.4,2754.3,0.9687]
[1763839897939,0.002,2754.4,2754.3,4.59938656]
[1763839899544,0.002,2754.4,2754.3,0.9687]
[1763839899766,0.002,2754.4,2754.3,4.59938656]
[1763839899917,0.002,2754.4,2754.3,0.9687]
[1763839900113,0.002,2754.4,2754.3,7.14091635]
[1763839900326,0.002,2754.4,2754.3,7.10460949]